fUSD/lending_fUSD_20240903
["ID","MTS","AMOUNT","RATE_DAILY","PERIOD"]
[337032996,1725347432037,-449.129,0.0001473,2]
[337032997,1725347432046,-3334.218,0.0001473,2]
[337032998,1725347432055,-248.8,0.0001473,2]
[337032999,1725347432064,-410.011,0.0001473,2]
[337033000,1725347432073,-1078.0,0.0001473,2]
[337033001,1725347432082,-798.31225995,0.00014753,2]
[337033002,1725347432091,-419.67565242,0.00014759,2]
[337033003,1725347432100,-361.18519672,0.00014762,2]
[337033004,1725347432109,-1000.0,0.0001479,2]
[337033005,1725347432117,-34088.38776913,0.000148,2]
[337033006,1725347432127,-7594.8912,0.000148,2]
[337033007,1725347432136,-161.2184,0.000148,2]
[337033008,1725347432145,-35573.7952,0.000148,2]
[337033009,1725347432154,-3602.2974,0.000148,2]
[337033010,1725347432163,-689.2802,0.000148,2]
[337033011,1725347432172,-323.60847799,0.000148,2]
[337033012,1725347432181,-361.18519672,0.00014808,2]
[337033013,1725347432191,-157.92,0.00014845,2]
[337033014,1725347432200,-361.18519672,0.00014854,2]
[337033015,1725347432209,-615.68,0.00014866,2]
[337033016,1725347432218,-500.0,0.0001488,2]
[337033017,1725347432227,-5616.07297692,0.0001488,2]
[337033018,1725347432431,-30888.4013731,0.0001489,2]
[337033019,1725347432441,-153.32,0.0001489,2]
[337033020,1725347432451,-500.0,0.00014899,2]
[337033021,1725347432460,-500.0,0.00014899,2]
[337033022,1725347432469,-500.0,0.00014899,2]
[337033023,1725347432478,-500.0,0.00014899,2]
[337033024,1725347432487,-489.97103638,0.00014899,2]
[337033025,1725347432496,-637.50439101,0.00014899,2]
[337033026,1725347432505,-7500.0,0.000149,2]
[337033027,1725347432514,-2500.0,0.000149,2]
[337033028,1725347432523,-2500.0,0.000149,2]
[337033029,1725347432533,-948.5528,0.000149,2]
[337033030,1725347432542,-60353.39358173,0.000149,2]
[337033031,1725347432554,-3273.10212446,0.000149,2]
[337033032,1725347432565,-3025.514,0.000149,2]
[337033033,1725347432585,-609.63404358,0.000149,2]
[337033034,1725347432596,-756.03810701,0.000149,2]
[337033035,1725347432607,-1182.71091713,0.000149,2]
[337033036,1725347432622,-4383.83800905,0.000149,2]
[337033037,1725347432633,-600.09293378,0.000149,2]
[337033038,1725347432664,-2047.29164152,0.000149,2]
[337033039,1725347432675,-661.83076547,0.000149,2]
[337033040,1725347432687,-953.4260579,0.000149,2]
[337033041,1725347432698,-755.33364621,0.000149,2]
[337033042,1725347432710,-2730.14128655,0.000149,2]
[337033043,1725347432726,-2760.14267243,0.000149,2]
[337033051,1725347437728,-2432.16379,0.0001485,2]
[337033052,1725347437738,-981.69265702,0.000149,2]
[337033053,1725347437749,-4032.83102732,0.000149,2]
[337033054,1725347437762,-1363.02997939,0.000149,2]
[337033055,1725347437773,-1379.86572107,0.000149,2]
[337033056,1725347437784,-3932.27750587,0.000149,2]
[337033057,1725347437796,-4217.81332251,0.000149,2]
[337033058,1725347437806,-50371.54541403,0.000149,2]
[337033059,1725347437818,-5639.12505836,0.000149,2]
[337033060,1725347437829,-290.08119832,0.000149,2]
[337033061,1725347437840,-2570.50200004,0.000149,2]
[337033062,1725347437863,-13857.37722925,0.000149,2]
[337033063,1725347437872,-393.3287,0.000149,2]
[337033064,1725347437882,-1000.0,0.000149,2]
[337033065,1725347437891,-342.34830846,0.000149,2]
[337033066,1725347437901,-361.18519672,0.000149,2]
[337033067,1725347437912,-323.60847798,0.000149,2]
[337033068,1725347437921,-150.0,0.00014971,2]
[337033069,1725347437931,-348.20253678,0.00014973,2]
[337033070,1725347437940,-391.80936884,0.00014973,2]
[337033071,1725347437949,-500.0,0.00014973,2]
[337033072,1725347437962,-500.0,0.00014973,2]
[337033073,1725347437972,-7128.41077256,0.00014976,2]
[337033074,1725347437981,-15977.11337105,0.0001498,2]
[337033075,1725347438001,-61.81086725,0.0001498,2]
[337033076,1725347438010,-455.89699713,0.0001498,2]
[337033077,1725347438022,-459.01463883,0.0001498,2]
[337033078,1725347438032,-5878.35106938,0.0001498,2]
[337033079,1725347438044,-14591.96961236,0.0001498,2]
[337033081,1725347438053,-3500.16163007,0.00014986,2]
[337033083,1725347438064,-6057.23386798,0.00014986,2]
[337033085,1725347438075,-16071.45571123,0.00014986,2]
[337033088,1725347438090,-27604.04831325,0.00014986,2]
[337033090,1725347438101,-22243.24876,0.00014986,2]
[337033093,1725347438120,-705.84775833,0.00014986,2]
[337033095,1725347438132,-21641.00395914,0.00014986,2]
[337033097,1725347438141,-784.0,0.00014986,2]
[337033099,1725347438151,-8910.5134657,0.0001499,2]
[337033101,1725347438161,-153.32,0.0001499,2]
[337033103,1725347438171,-153.32,0.0001499,2]
[337033105,1725347438181,-153.32,0.0001499,2]
[337033107,1725347438190,-153.32,0.0001499,2]
[337033109,1725347438200,-153.32,0.0001499,2]
[337033111,1725347438210,-153.32,0.0001499,2]
[337033112,1725347438219,-153.32,0.0001499,2]
[337033114,1725347438228,-153.32,0.0001499,2]
[337033116,1725347438237,-153.32,0.0001499,2]
[337033119,1725347438247,-153.32,0.0001499,2]
[337033122,1725347438256,-153.32,0.0001499,2]
[337033124,1725347438265,-153.32,0.0001499,2]
[337033127,1725347438275,-153.32,0.0001499,2]
[337033129,1725347438284,-153.32,0.0001499,2]
[337033132,1725347438293,-153.32,0.0001499,2]
[337033135,1725347438303,-153.32,0.0001499,2]
[337033138,1725347438311,-153.32,0.0001499,2]
[337033140,1725347438321,-153.32,0.0001499,2]
[337033143,1725347438330,-153.32,0.0001499,2]
[337033145,1725347438339,-153.32,0.0001499,2]
[337033147,1725347438348,-153.32,0.0001499,2]
[337033149,1725347438358,-153.32,0.0001499,2]
[337033151,1725347438368,-153.32,0.0001499,2]
[337033153,1725347438378,-153.32,0.0001499,2]
[337033155,1725347438387,-153.32,0.0001499,2]
[337033157,1725347438396,-153.32,0.0001499,2]
[337033159,1725347438408,-153.32,0.0001499,2]
[337033161,1725347438417,-153.32,0.0001499,2]
[337033163,1725347438426,-153.32,0.0001499,2]
[337033165,1725347438436,-153.32,0.0001499,2]
[337033167,1725347438445,-153.32,0.0001499,2]
[337033169,1725347438455,-153.32,0.0001499,2]
[337033171,1725347438464,-153.32,0.0001499,2]
[337033173,1725347438473,-153.32,0.0001499,2]
[337033175,1725347438482,-153.32,0.0001499,2]
[337033177,1725347438491,-150.0,0.00014998,2]
[337033196,1725347438682,-150.0,0.00014998,2]
[337033199,1725347438700,-150.0,0.00014998,2]
[337033201,1725347438711,-150.0,0.00014998,2]
[337033203,1725347438722,-1000.0,0.00014999,2]
[337033204,1725347438731,-1000.0,0.00014999,2]
[337033206,1725347438741,-1000.0,0.00014999,2]
[337033208,1725347438750,-1000.0,0.00014999,2]
[337033210,1725347438760,-1000.0,0.00014999,2]
[337033212,1725347438769,-1000.0,0.00014999,2]
[337033213,1725347438779,-2309495.73452619,0.00015,2]
[337033214,1725347438791,-660007.17135979,0.00015,2]
[337033215,1725347438803,-1398218.83588162,0.00015,2]
[337033216,1725347438815,-1590.380762,0.00015,2]
[337033217,1725347438826,-1001.2374048,0.00015,2]
[337033218,1725347438845,-463.4202856,0.00015,2]
[337033219,1725347438856,-2426.81983942,0.00015,2]
[337033220,1725347438867,-11397.85447334,0.00015,2]
[337033222,1725347438879,-5106.10000249,0.00015,2]
[337033224,1725347438890,-182500.8639681,0.00015,2]
[337033243,1725347439076,-123.24,0.00015,2]
[337033245,1725347439087,-16932.32639603,0.00015,2]
[337033249,1725347439113,-617.53442811,0.00015,2]
[337033295,1725347439547,-639.318,0.00015,2]
[337033301,1725347439592,-790.76610951,0.00015,2]
[337033305,1725347439605,-322.50000001,0.00015,2]
[337033307,1725347439616,-3670.93476964,0.00015,2]
[337033310,1725347439637,-1596.88006637,0.00015,2]
[337033313,1725347439649,-14769.35656793,0.00015,2]
[337033314,1725347439663,-2371.47496843,0.00015,2]
[337033315,1725347439674,-3084.36909757,0.00015,2]
[337033316,1725347439685,-16040.5,0.00015,2]
[337033318,1725347439696,-619.41985286,0.00015,2]
[337033320,1725347439710,-2327.8579357,0.00015,2]
[337033322,1725347439724,-340.78144659,0.00015,2]
[337033325,1725347439735,-1156.2,0.00015,2]
[337033327,1725347439745,-2689.99555988,0.00015,2]
[337033328,1725347439755,-333.81892786,0.00015,2]
[337033329,1725347439767,-278.36419624,0.00015,2]
[337033330,1725347439778,-1668.94830626,0.00015,2]
[337033331,1725347439790,-313.94669494,0.00015,2]
[337033332,1725347439929,-1301.90749695,0.00015,2]
[337033333,1725347439941,-3343.97506869,0.00015,2]
[337033334,1725347439954,-561.97850452,0.00015,2]
[337033335,1725347439966,-494.21333103,0.00015,2]
[337033336,1725347439980,-600.70263248,0.00015,2]
[337033338,1725347439990,-4786.36046934,0.00015,2]
[337033340,1725347440001,-3198.49104601,0.00015,2]
[337033342,1725347440012,-1028.443,0.00015,2]
[337033344,1725347440023,-163771.19586789,0.00015,2]
[337033346,1725347440032,-144851.20668646,0.00015,2]
[337033421,1725347442592,-7500.0,0.000149,2]
[337033422,1725347442601,-16021.76724492,0.00015,2]
[337033423,1725347442613,-2999.6587433,0.00015,2]
[337033424,1725347442623,-11553.72772845,0.00015,2]
[337033425,1725347442639,-485.29999995,0.00015,2]
[337033426,1725347442783,-100582.07090104,0.00015,2]
[337033427,1725347442795,-1095.78215054,0.00015,2]
[337033443,1725347443179,-6139.86060994,0.00015,2]
[337033445,1725347443194,-2383.84330625,0.00015,2]
[337033447,1725347443205,-1308.00000413,0.00015,2]
[337033450,1725347443216,-862.95109923,0.00015,2]
[337033452,1725347443227,-541.68566657,0.00015,2]
[337033454,1725347443238,-697.68583,0.00015,2]
[337033456,1725347443249,-720.02828238,0.00015,2]
[337033458,1725347443261,-502.49912,0.00015,2]
[337033460,1725347443272,-1167.00601232,0.00015,2]
[337033462,1725347443283,-581.53729975,0.00015,2]
[337033464,1725347443294,-505.5664408,0.00015,2]
[337033466,1725347443305,-2581.2614539,0.00015,2]
[337033467,1725347443327,-19337.88364321,0.00015,2]
[337033468,1725347443339,-1240.38172753,0.00015,2]
[337033474,1725347445667,-3627.57220054,0.00015,2]
[337033475,1725347445680,-399.98561821,0.00015,2]
[337033476,1725347445731,-252.76883574,0.00015,2]
[337033477,1725347445910,-541.614,0.00015,2]
[337033478,1725347445922,-9804.0114,0.00015,2]
[337033479,1725347445968,-1011.57802586,0.00015,2]
[337033493,1725347467519,-1500.0,0.0002,30]
[337033494,1725347832902,158.49,0.00010959,2]
[337033495,1725347836821,667.06,0.00011919,2]
[337033496,1725347986723,6885.6773,0.00013014,2]
[337033497,1725347993280,550.0,0.00011,2]
[337033498,1725348329426,5848.51702667,0.000101,2]
[337033499,1725348336230,4973.95842012,9.5e-05,2]
[337033500,1725348354004,150.0,6.94e-05,2]
[337033501,1725348354026,150.0,6.94e-05,2]
[337033502,1725348354046,150.0,6.94e-05,2]
[337033503,1725348354066,150.0,6.94e-05,2]
[337033504,1725348354087,150.0,6.94e-05,2]
[337033505,1725348354107,267.92599453,6.94e-05,2]
[337033506,1725348354129,22675.59350899,6.94e-05,2]
[337033507,1725348378532,641.2,0.00011559,2]
[337033508,1725348477875,1662.73284004,0.0001,2]
[337033509,1725348491587,14934.46686619,0.000109,2]
[337033512,1725348567004,-460.0,0.00013113,2]
[337033513,1725348567040,-278.29,0.00013288,2]
[337033514,1725348567067,-150.0,0.00013428,2]
[337033515,1725348567093,-1745.27,0.00013475,2]
[337033516,1725348567121,-150.0,0.00013488,2]
[337033517,1725348567157,-317.13814071,0.00013538,2]
[337033519,1725348631695,-250.0,0.00013473,2]
[337033521,1725348631705,-200.0,0.00013476,2]
[337033522,1725348631715,-52.27185929,0.00013538,2]
[337033523,1725348631723,-182.6,0.0001359,2]
[337033525,1725348631733,-300.0,0.00013624,2]
[337033527,1725348631742,-1303.7003105,0.00013625,2]
[337033529,1725348631753,-5295.56352255,0.00013625,2]
[337033531,1725348631763,-4957.06675285,0.00013625,2]
[337033532,1725348631904,-552.46305185,0.00013625,2]
[337033533,1725348631915,-4835.63922378,0.00013625,2]
[337033534,1725348632120,-298.62086198,0.00013625,2]
[337033535,1725348632141,-459.0,0.00013625,2]
[337033536,1725348632152,-6197.94627649,0.00013625,2]
[337033537,1725348632161,-200.0,0.00013699,2]
[337033538,1725348632170,-235.92,0.00013699,2]
[337033539,1725348632179,-2797.39,0.00013699,2]
[337033540,1725348632188,-250.0,0.00013703,2]
[337033541,1725348632197,-250.0,0.00013711,2]
[337033542,1725348632207,-299.99,0.00013711,2]
[337033543,1725348632216,-641.2,0.00013823,2]
[337033544,1725348632226,-150.99,0.00013845,2]
[337033545,1725348632235,-499.99,0.00013872,2]
[337033546,1725348632244,-630.59,0.0001391,2]
[337033547,1725348632254,-157.68,0.00013983,2]
[337033548,1725348632263,-5867.438,0.00014,2]
[337033549,1725348632271,-150.0,0.00014169,2]
[337033550,1725348632282,-20133.87839727,0.0001417,2]
[337033551,1725348632291,-53551.20128551,0.0001418,2]
[337033554,1725348637920,-1007.07875757,0.0001418,2]
[337033555,1725348638096,-459.4055847,0.0001418,2]
[337033572,1725348639795,-4290.85821523,0.0001418,2]
[337033573,1725348639805,-150.0,0.000144,2]
[337033574,1725348639816,-150.0,0.000144,2]
[337033575,1725348639826,-150.0,0.000144,2]
[337033576,1725348639835,-150.0,0.00014578,2]
[337033577,1725348639845,-150.0,0.00014578,2]
[337033578,1725348639854,-150.0,0.00014578,2]
[337033579,1725348639864,-150.0,0.00014578,2]
[337033580,1725348639874,-157.92,0.00014652,2]
[337033581,1725348639883,-172.8445,0.0001468,2]
[337033582,1725348639893,-742.362,0.0001468,2]
[337033583,1725348639902,-170.47038921,0.0001469,2]
[337033584,1725348639912,-150.0,0.000147,2]
[337033585,1725348639921,-170.47038921,0.00014732,2]
[337033586,1725348639931,-27358.7297011,0.0001477,2]
[337033587,1725348639941,-170.47038921,0.00014774,2]
[337033588,1725348639950,-26742.87441605,0.0001478,2]
[337033589,1725348639961,-739.87264126,0.0001478,2]
[337033590,1725348639973,-760.74789201,0.0001478,2]
[337033591,1725348640055,-256.62236691,0.0001478,2]
[337033592,1725348640068,-760.37167388,0.0001478,2]
[337033604,1725348640333,-270.3938,0.0001478,2]
[337033605,1725348640346,-1058.06846759,0.0001478,2]
[337033606,1725348640358,-8320.45619741,0.0001478,2]
[337033607,1725348642718,-266.30561186,0.0001478,2]
[337033610,1725348643021,-2749.57528133,0.0001478,2]
[337033611,1725348643036,-3100.69814071,0.0001478,2]
[337033612,1725348643047,-3796.31,0.0001478,2]
[337033614,1725348643058,-40641.29442764,0.0001478,2]
[337033619,1725348643098,-1016.1,0.0001478,2]
[337033651,1725348645711,-2335.18041205,0.0001478,2]
[337033652,1725348645774,-152185.1286713,0.0001478,2]
[337033653,1725348645783,-500.0,0.0001479,2]
[337033654,1725348645792,-150.0,0.000148,2]
[337033655,1725348645802,-150.0,0.000148,2]
[337033656,1725348645811,-170.47038921,0.00014816,2]
[337033657,1725348645820,-2026.80316,0.0001485,2]
[337033658,1725348645829,-170.47038921,0.00014858,2]
[337033659,1725348645839,-500.0,0.00014889,2]
[337033660,1725348645848,-181.94493234,0.00014889,2]
[337033661,1725348645857,-500.0,0.00014889,2]
[337033662,1725348645866,-500.0,0.00014889,2]
[337033663,1725348645876,-500.0,0.00014889,2]
[337033664,1725348645886,-500.0,0.00014889,2]
[337033665,1725348645896,-161.43859899,0.00014889,2]
[337033666,1725348645907,-500.0,0.00014889,2]
[337033667,1725348645916,-54717.4594021,0.0001489,2]
[337033668,1725348645927,-204.51,0.0001489,2]
[337033669,1725348645937,-7500.0,0.000149,2]
[337033670,1725348645947,-1251.49650939,0.000149,2]
[337033671,1725348645957,-1251.49650939,0.000149,2]
[337033672,1725348645967,-34288.06488487,0.000149,2]
[337033673,1725348645982,-65711.93511513,0.000149,2]
[337033674,1725348645992,-150.0,0.000149,2]
[337033675,1725348646003,-150.0,0.000149,2]
[337033676,1725348646012,-170.47038921,0.000149,2]
[337033677,1725348646022,-306.91424556,0.000149,2]
[337033678,1725348646031,-420.0,0.00014932,2]
[337033679,1725348646040,-300.0,0.00014946,2]
[337033680,1725348646049,-27358.7297011,0.00014969,2]
[337033681,1725348646058,-216.74872695,0.00014969,2]
[337033682,1725348646067,-500.0,0.00014973,2]
[337033683,1725348646076,-500.0,0.00014973,2]
[337033684,1725348646086,-78272.58141295,0.0001498,2]
[337033685,1725348646100,-22042.76082405,0.0001498,2]
[337033686,1725348646109,-66117.06337722,0.0001498,2]
[337033687,1725348646123,-301.56287668,0.0001498,2]
[337033688,1725348646132,-150.00000001,0.00014986,2]
[337033689,1725348646142,-3399.0,0.00014986,2]
[337033690,1725348646151,-581.0,0.00014986,2]
[337033691,1725348646161,-7379.84736154,0.00014989,2]
[337033692,1725348646170,-62420.0494774,0.0001499,2]
[337033693,1725348646184,-1416.9864917,0.0001499,2]
[337033694,1725348646194,-43434.70975421,0.0001499,2]
[337033695,1725348646207,-40637.43076967,0.0001499,2]
[337033696,1725348646221,-11537.57862452,0.0001499,2]
[337033697,1725348646232,-430.72220257,0.0001499,2]
[337033698,1725348646254,-1750.24114476,0.0001499,2]
[337033699,1725348646266,-71945.80681927,0.0001499,2]
[337033700,1725348646275,-204.51,0.0001499,2]
[337033701,1725348646284,-216.74872695,0.0001499,2]
[337033702,1725348646294,-213.67,0.00014991,2]
[337033703,1725348646303,-150.0,0.00014998,2]
[337033704,1725348646312,-150.0,0.00014998,2]
[337033705,1725348646322,-150.0,0.00014998,2]
[337033706,1725348646331,-150.0,0.00014998,2]
[337033707,1725348646340,-1518.68233759,0.00014999,2]
[337033708,1725348646350,-1000.0,0.00014999,2]
[337033709,1725348646359,-1000.0,0.00014999,2]
[337033710,1725348646368,-1000.0,0.00014999,2]
[337033711,1725348646377,-1000.0,0.00014999,2]
[337033712,1725348646387,-1000.0,0.00014999,2]
[337033713,1725348646396,-1038.27900987,0.00014999,2]
[337033714,1725348646406,-4964.71354872,0.00014999,2]
[337033715,1725348646415,-118.98816786,0.00014999,2]
[337033716,1725348646427,-449.01183214,0.00014999,2]
[337033717,1725348646436,-2048.78324483,0.00015,2]
[337033718,1725348646447,-824.59977352,0.00015,2]
[337033719,1725348646458,-1089.88117537,0.00015,2]
[337033720,1725348646470,-329.20700671,0.00015,2]
[337033721,1725348646489,-1491.15000001,0.00015,2]
[337033722,1725348646500,-685.82498942,0.00015,2]
[337033723,1725348646512,-16062.3791908,0.00015,2]
[337033724,1725348646526,-2020.29015397,0.00015,2]
[337033725,1725348646538,-1151.46518539,0.00015,2]
[337033726,1725348646549,-1383.40857251,0.00015,2]
[337033727,1725348646560,-5605.89535856,0.00015,2]
[337033728,1725348646572,-316.01403212,0.00015,2]
[337033751,1725348918211,157.79,0.00010959,2]
[337033752,1725349032625,596.87,0.0001189,2]
[337033753,1725349417917,154.63,0.00010959,2]
[337033755,1725349581144,567.02,0.0001173,2]
[337033757,1725349782974,-1058.54659804,0.00013373,2]
[337033758,1725349783001,-43.04802009,0.00013488,2]
[337033760,1725349831886,-106.95197991,0.00013488,2]
[337033761,1725349831897,-221.06102438,0.00013609,2]
[337033762,1725349831909,-28.93897562,0.00013609,2]
[337033763,1725349831919,-250.0,0.00013609,2]
[337033764,1725349831929,-4645.34,0.00013714,2]
[337033765,1725349831939,-150.0,0.00013721,2]
[337033766,1725349831948,-3606.60431272,0.00013721,2]
[337033767,1725349831959,-1143.0,0.00013721,2]
[337033768,1725349831975,-44563.64179861,0.00013721,2]
[337033769,1725349831985,-157.7,0.00013722,2]
[337033770,1725349831994,-295.53,0.00013728,2]
[337033771,1725349832004,-150.0,0.00013836,2]
[337033772,1725349832014,-300.4,0.00013857,2]
[337033773,1725349832026,-499.99,0.00013857,2]
[337033774,1725349832036,-250.0,0.00013915,2]
[337033775,1725349832049,-567.02,0.00013994,2]
[337033776,1725349832059,-704.47,0.00014005,2]
[337033777,1725349832068,-150.0,0.00014237,2]
[337033778,1725349832078,-40871.79,0.00014316,6]
[337033779,1725349832087,-2640.59,0.00014316,6]
[337033780,1725349832098,-703.14868871,0.00014579,2]
[337033781,1725349832109,-490.817,0.0001458,2]
[337033782,1725349832120,-703.14868864,0.00014615,2]
[337033783,1725349832130,-703.14868864,0.0001465,2]
[337033784,1725349832140,-199.01266057,0.00014669,2]
[337033785,1725349832149,-150.99,0.0001467,2]
[337033786,1725349832159,-62317.39037314,0.0001467,2]
[337033787,1725349832174,-327.39805379,0.0001467,2]
[337033788,1725349832185,-328.4348001,0.0001467,2]
[337033797,1725349837953,-16144.98070817,0.0001467,2]
[337033798,1725349837963,-500.0,0.00014679,2]
[337033799,1725349837973,-500.0,0.00014679,2]
[337033800,1725349837983,-500.0,0.00014679,2]
[337033801,1725349837993,-235.65727592,0.00014679,2]
[337033802,1725349838003,-241.49616851,0.00014679,2]
[337033803,1725349838013,-500.0,0.00014679,2]
[337033804,1725349838023,-305.0358909,0.00014679,2]
[337033805,1725349838040,-204.53771161,0.00014679,2]
[337033806,1725349838052,-500.0,0.00014679,2]
[337033807,1725349838061,-500.0,0.00014679,2]
[337033808,1725349838071,-500.0,0.00014679,2]
[337033809,1725349838080,-500.0,0.00014679,2]
[337033810,1725349838091,-500.0,0.00014679,2]
[337033811,1725349838101,-500.0,0.00014679,2]
[337033812,1725349838110,-500.0,0.00014679,2]
[337033813,1725349838121,-500.0,0.00014679,2]
[337033814,1725349838131,-500.0,0.00014679,2]
[337033815,1725349838140,-410.44850721,0.00014679,2]
[337033816,1725349838150,-500.0,0.00014679,2]
[337033817,1725349838160,-557.1631308,0.00014679,2]
[337033818,1725349838169,-100000.0,0.0001468,2]
[337033819,1725349838179,-208028.83026709,0.0001468,2]
[337033820,1725349838190,-36971.16973291,0.0001468,2]
[337033821,1725349838201,-500.0,0.0001468,2]
[337033822,1725349838211,-703.14868864,0.00014686,2]
[337033823,1725349838221,-703.14868864,0.00014722,2]
[337033824,1725349838231,-703.14868864,0.00014757,2]
[337033825,1725349838241,-703.14868864,0.00014793,2]
[337033826,1725349838251,-8790.91154836,0.00014809,2]
[337033827,1725349838260,-703.14868864,0.00014829,2]
[337033828,1725349838270,-255.0,0.00014832,2]
[337033829,1725349838280,-1689.00264,0.0001485,2]
[337033830,1725349838294,-703.14868864,0.00014864,2]
[337033831,1725349838303,-7500.0,0.000149,2]
[337033832,1725349838313,-1098.0,0.000149,2]
[337033833,1725349838322,-399.41023186,0.000149,2]
[337033834,1725349838332,-5136.58029518,0.000149,2]
[337033835,1725349838342,-703.14868864,0.000149,2]
[337033836,1725349838352,-35163.6461934,0.00014969,2]
[337033837,1725349838362,-35163.6461934,0.0001497,2]
[337033838,1725349838372,-15813.9586319,0.0001497,2]
[337033839,1725349838382,-500.0,0.00014973,2]
[337033840,1725349838391,-500.0,0.00014973,2]
[337033841,1725349838402,-161.4522388,0.00014977,2]
[337033842,1725349838414,-5271.31954396,0.00014979,2]
[337033843,1725349838423,-105490.93858,0.0001498,2]
[337033844,1725349838432,-152868.266775,0.0001498,2]
[337033845,1725349838443,-150.0,0.00014986,2]
[337033846,1725349838452,-1954.02525914,0.00014988,2]
[337033847,1725349838461,-5271.31954396,0.00014989,2]
[337033848,1725349838470,-73798.4736154,0.0001499,2]
[337033849,1725349838479,-150.0,0.00014991,2]
[337033850,1725349838489,-807.261194,0.00014997,2]
[337033851,1725349838500,-1000.0,0.00014999,2]
[337033852,1725349838509,-1000.0,0.00014999,2]
[337033853,1725349838519,-1000.0,0.00014999,2]
[337033854,1725349838528,-1000.0,0.00014999,2]
[337033855,1725349838537,-277.76276379,0.00014999,2]
[337033856,1725349838547,-1000.0,0.00014999,2]
[337033857,1725349838556,-1000.0,0.00014999,2]
[337033858,1725349838565,-1000.0,0.00014999,2]
[337033859,1725349838574,-614.0,0.00014999,2]
[337033860,1725349838584,-457528.10041732,0.00015,2]
[337033861,1725349838594,-77925.00471573,0.00015,2]
[337033862,1725349838611,-372.94911677,0.00015,2]
[337033863,1725349838623,-3547.97188898,0.00015,2]
[337033864,1725349838635,-44806.43158361,0.00015,2]
[337033865,1725349838654,-114591.11816836,0.00015,2]
[337033866,1725349838667,-473.3383626,0.00015,2]
[337033867,1725349838679,-8724.25700453,0.00015,2]
[337033868,1725349838693,-1355.02815999,0.00015,2]
[337033869,1725349838704,-8076.7199976,0.00015,2]
[337033870,1725349838716,-29581.3791582,0.00015,2]
[337033871,1725349838735,-616.0766574,0.00015,2]
[337033872,1725349838747,-600.5,0.00015,2]
[337033873,1725349838760,-5146.02669942,0.00015,2]
[337033874,1725349838772,-16084.90153251,0.00015,2]
[337033875,1725349838806,-1720.75393469,0.00015,2]
[337033876,1725349838819,-3353.94450525,0.00015,2]
[337033877,1725349838831,-667.24633407,0.00015,2]
[337033881,1725349839859,-875.6832297,0.00015,2]
[337033887,1725349839912,-1761.17371814,0.00015,2]
[337033888,1725349839923,-1480.05768,0.00015,2]
[337033889,1725349839966,-271.37002482,0.00015,2]
[337033890,1725349840074,-297.50798804,0.00015,2]
[337033891,1725349840128,-349.4,0.00015,2]
[337033892,1725349840235,-473.28023069,0.00015,2]
[337033893,1725349840247,-1917.30000001,0.00015,2]
[337033894,1725349840259,-3406.05082035,0.00015,2]
[337033895,1725349842846,-4911.22029618,0.00015,2]
[337033896,1725349843004,-1072610.8911997,0.00015,2]
[337033897,1725349843016,-4568.00000004,0.00015,2]
[337033898,1725349843061,-775.80782949,0.00015,2]
[337033899,1725349843072,-916.74900749,0.00015,2]
[337033900,1725349843085,-373.3738747,0.00015,2]
[337033901,1725349843194,-267.30131473,0.00015,2]
[337033902,1725349843217,-1404.61876171,0.00015,2]
[337033927,1725349845840,-4457.87038366,0.00015,2]
[337033928,1725349845893,-756.80780763,0.00015,2]
[337033929,1725349845906,-850.03340466,0.00015,2]
[337033930,1725349845917,-3398.41651,0.00015,2]
[337033931,1725349845929,-678.72349785,0.00015,2]
[337033932,1725349845940,-12410.3791457,0.00015,2]
[337033933,1725349845952,-283.49453764,0.00015,2]